Cogmind - Beta 14 @@@ ROGUE MODE // 2025.04.25 @ 21:09:00 Player: Centeno Result: Destroyed by as-60227 with Assembled Blade Performance ------------- Evolutions (0) 0 Regions Visited (4) 800 Robots Destroyed (23) 115 Value Destroyed (348) 348 Prototype IDs (26) 520 Alien Tech Used (0) 0 Bonus (370) 370 TOTAL SCORE: 2153 Bonus ------- Follower Combat Kills 70 Aligned with FarCom 300 Cogmind --------- Core Integrity 0/250 Matter 175/300 Energy 250/250 System Corruption 8% Temperature Cool (6) Movement Flying (214) Ox2 Location -9/Mines Parts ------- > --- POWER (1) -------- Ion Engine > --- PROPULSION (2) --- Flight Unit Makeshift Flight Unit > --- UTILITY (2) ------ Large Storage Unit Hardened Light Armor Plating > --- WEAPON (2) ------- Heavy Assault Rifle > --- INVENTORY (15) --- Heat Sink Improved Heat Sink ECM Suite Heavy Assault Rifle Deploy-a-Sentry Deploy-a-Sentry Peak State ------------ > --- POWER ------------ Ion Engine > --- PROPULSION ------- Flight Unit Makeshift Flight Unit > --- UTILITY ---------- Large Storage Unit Hardened Light Armor Plating > --- WEAPON ----------- Heavy Assault Rifle Heavy Assault Rifle > --- INVENTORY -------- Heat Sink Improved Heat Sink ECM Suite Heavy Assault Rifle Deploy-a-Sentry Deploy-a-Sentry [Rating: 15] Favorites ----------- Power Ion Engine Engine Ion Engine Propulsion Light Treads Treads Light Treads Flight Unit Flight Unit Utility Seismic Detector Device Seismic Detector Storage Large Storage Unit Protection Hardened Light Armor Plating Weapon Heavy Assault Rifle Energy Gun EM Pulse Gun Ballistic Gun Heavy Assault Rifle Launcher Grenade Launcher Build | -11 -10 -10 -10 -9 ------- Run | Yrd Mat Min Exi Min Slots Evolved . | . . . . . Power . | . . . . . Propulsion . | . . . . . Utility . | . . . . . Weapon . | . . . . . Parts Attached 29 | 7 13 . . 9 Power 4 | 1 2 . . 1 Engine 4 | 1 2 . . 1 Core . | . . . . . Reactor . | . . . . . Propulsion 6 | 2 2 . . 2 Treads 4 | 2 2 . . . Leg . | . . . . . Wheel . | . . . . . Hover . | . . . . . Flight 2 | . . . . 2 Utility 8 | 2 3 . . 3 Device 4 | 1 2 . . 1 Storage 2 | 1 1 . . . Processor . | . . . . . Hackware . | . . . . . Protection 2 | . . . . 2 Artifact . | . . . . . Weapon 11 | 2 6 . . 3 Energy Gun 3 | 2 1 . . . Energy Cannon . | . . . . . Ballistic Gun 6 | . 3 . . 3 Ballistic Cannon . | . . . . . Launcher 2 | . 2 . . . Special Weapon . | . . . . . Impact Weapon . | . . . . . Slashing Weapon . | . . . . . Piercing Weapon . | . . . . . Special Melee Weapon . | . . . . . Unidentified Prototypes . | . . . . . Parts Lost 10 | . 5 . . 5 Power 2 | . 1 . . 1 Propulsion 3 | . 1 . . 2 Utility . | . . . . . Weapon 5 | . 3 . . 2 Highest Loss Streak 4 | . 2 . . 4 To Critical Strikes . | . . . . . Average Slot Usage (%) 94 | . 99 100 71 89 Engine 13 | . 13 14 14 13 Treads 26 | . 28 28 28 9 Flight 1 | . . . . 17 Device 13 | . 13 14 14 4 Storage 14 | . 14 14 14 14 Energy Gun 2 | . 5 . . . Ballistic Gun 17 | . 16 28 . 20 Launcher 3 | . 5 . . . Peak Build Rating 15 | 7 10 10 8 15 Average Rating 8 | 5 8 10 6 12 On Entrance 7 | . 7 10 10 8 Naked Turns . | . . . . . Heaviest Build 36 | 15 32 32 26 36 Greatest Support 40 | 40 40 40 40 40 Greatest Overweight (x) 10 | . . . . 10 Average Overweight (x) . | . . . . 1 Largest Inventory Capacity 15 | 8 15 15 15 15 Average Capacity 12 | 6 11 15 15 15 Most Carried 13 | 3 7 8 13 13 Average Carried 6 | 1 4 7 11 9 Final Capacity 15 | 8 15 15 15 15 Final Carried 13 | 2 7 8 13 6 Class Distribution -------------------- 100% | Mutant Dominant Class ---------------- Mutant | -10/Materials Mutant | -10/Mines Mutant | -10/Exiles Mutant | -9/Mines Resources | -11 -10 -10 -10 -9 ----------- Run | Yrd Mat Min Exi Min Matter Collected 735 | 270 422 33 . 10 Remotely . | . . . . . Salvage Created 675 | 115 560 . . . Parts 51 | 7 44 . . . Haulers Intercepted 1 | . 1 . . . Recyclers Shooed 2 | . 2 . . . Parts Field Recycled . | . . . . . Retrieved Matter . | . . . . . Parts Self-Destructed . | . . . . . Prevented . | . . . . . Kills | -11 -10 -10 -10 -9 ------- Run | Yrd Mat Min Exi Min Combat Hostiles Destroyed 14 | . 14 . . . Guns 7 | . 7 . . . AOE 7 | . 7 . . . Classes Destroyed 8 | 2 6 . . . Worker 1 | . 1 . . . Builder 1 | . 1 . . . Tunneler 1 | 1 . . . . Hauler 1 | . 1 . . . Recycler 3 | 1 2 . . . Watcher 2 | . 2 . . . Swarmer 9 | . 9 . . . Grunt 5 | . 5 . . . Best Kill Streak 5 | 1 5 . . . Combat Bots Only 3 | . 3 . . . Max Kills in Single Turn 3 | 1 3 . . . Gunslinging . | . . . . . Exploded 2 | . 2 . . . Melee . | . . . . . Uniques/NPCs Destroyed . | . . . . . Combat | -11 -10 -10 -10 -9 -------- Run | Yrd Mat Min Exi Min Hostile Shots Fired 111 | . 51 2 . 58 Missed 40 | . 12 2 . 26 Damage Taken 1347 | . 695 . . 652 Core 252 | . 100 . . 152 Absorbed by Shields . | . . . . . Regen/Repaired (Parts) 19 | . 19 . . . Core Remaining (%) 100 | 100 . . . . Volleys Fired 63 | 4 57 1 . 1 Largest 2 | 2 2 2 . 2 Hottest 80 | 80 80 46 . 46 Shots Fired 93 | 8 81 2 . 2 Gun 86 | 8 74 2 . 2 Cannon . | . . . . . Launcher 7 | . 7 . . . Special . | . . . . . Kinetic 63 | . 59 2 . 2 Thermal . | . . . . . Explosive 7 | . 7 . . . Electromagnetic 23 | 8 15 . . . Robot Hit Streak 10 | 2 10 . . 1 Robot Miss Streak 3 | 1 3 2 . 1 Penetration Max . | . . . . . Secondary Targets 1 | . 1 . . . Max Gunslinging Chain 1 | . 1 . . . Shots Hit Robots 56 | 4 51 . . 1 Core Hits 28 | 3 25 . . . Critical Kills . | . . . . . Critical Parts Destroyed . | . . . . . Critical Strikes 2 | . 2 . . . Corrupt 2 | . 2 . . . Melee Attacks . | . . . . . Impact . | . . . . . Slashing . | . . . . . Piercing . | . . . . . Sneak Attacks . | . . . . . Combat Hostiles . | . . . . . Follow-up Attacks . | . . . . . Damage Inflicted 1208 | 48 1142 . . 18 Guns 778 | 48 712 . . 18 Cannons . | . . . . . Explosions 430 | . 430 . . . Melee . | . . . . . Ramming . | . . . . . Kinetic 583 | . 565 . . 18 Thermal 37 | . 37 . . . Explosive 393 | . 393 . . . Electromagnetic 195 | 48 147 . . . Impact . | . . . . . Slashing . | . . . . . Piercing . | . . . . . Highest Corruption 8 | . 8 8 8 8 Average Corruption 7 | . 7 8 8 8 Corruption Purged . | . . . . . Corruption Blocked . | . . . . . Effects 79 | . 37 22 13 7 Message Errors 13 | . 9 1 2 1 Matter Fused 20 | . 8 6 4 2 Heat Flow Errors 8 | . 1 4 2 1 Energy Discharges 9 | . 5 2 2 . Parts Rejected 1 | . 1 . . . Parts Fused 2 | . 1 1 . . Data Loss (minor) 13 | . 3 6 2 2 Data Loss (major) 4 | . 2 . 1 1 Misfires 4 | . 3 1 . . Alerts 1 | . 1 . . . Weapon Failures 4 | . 3 1 . . Overload Shots . | . . . . . Overflow Damage 32 | . 32 . . . Projectiles . | . . . . . Explosions 32 | . 32 . . . Melee . | . . . . . Knockbacks . | . . . . . Impact . | . . . . . Kinetic . | . . . . . Secondary . | . . . . . Self-Inflicted Damage 87 | . 87 . . . Shots 5 | . 5 . . . Rammed . | . . . . . Targets Rammed . | . . . . . Kicked . | . . . . . Crushed . | . . . . . Highest Temperature 234 | 54 234 234 217 138 Average Temperature 60 | 25 38 87 99 62 Received Heat Transfer 177 | . 93 . . 84 Siege Activations . | . . . . . Robots Corrupted . | . . . . . Combat Hostiles . | . . . . . Parts Fried . | . . . . . Impact Corruptions . | . . . . . Robots Melted . | . . . . . Combat Hostiles . | . . . . . Parts Melted . | . . . . . Heat Transferred . | . . . . . Parts Sabotaged . | . . . . . Parts Stolen . | . . . . . Parts Stripped . | . . . . . Power Chain Reactions 1 | . 1 . . . Alert | -11 -10 -10 -10 -9 ------- Run | Yrd Mat Min Exi Min Peak Influence 242 | 10 242 139 . 44 Initial 21 | . 6 21 . . Average 67 | 3 95 39 . 15 Maximum Alert Level 1 | . 1 . . . Low Security (%) 94 | 100 90 100 . 100 Level 1 5 | . 9 . . . Level 2 . | . . . . . Level 3 . | . . . . . Level 4 . | . . . . . Level 5 . | . . . . . High Security . | . . . . . Max Security . | . . . . . Squads Dispatched 3 | . 2 . . 1 Investigation . | . . . . . Extermination . | . . . . . Reinforcement 2 | . 2 . . . Assault 1 | . . . . 1 Garrison . | . . . . . Intercept . | . . . . . Searches Triggered . | . . . . . Construction Impeded . | . . . . . Haulers Reinforced . | . . . . . Active Scanning Responses . | . . . . . Cargo Convoy Interrupts . | . . . . . Stealth | -11 -10 -10 -10 -9 --------- Run | Yrd Mat Min Exi Min Distress Signals . | . . . . . Communications Jammed . | . . . . . Distress Signals . | . . . . . Times Spotted 51 | . 25 3 . 23 Peak Tracking Total 21 | . 4 2 . 21 Tactical Retreats . | . . . . . Traps | -11 -10 -10 -10 -9 ------- Run | Yrd Mat Min Exi Min Traps Triggered 3 | . 3 . . . Indirectly . | . . . . . Trap Hack Attempts . | . . . . . Triggered . | . . . . . Disarmed . | . . . . . Reprogrammed . | . . . . . Reused . | . . . . . Traps Extracted . | . . . . . Installed . | . . . . . Triggered . | . . . . . Machines | -11 -10 -10 -10 -9 ---------- Run | Yrd Mat Min Exi Min Machines Disabled 1 | . 1 . . . Max in Single Turn 1 | . 1 . . . Machines Repaired . | . . . . . Machines Dismantled . | . . . . . Machines Sabotaged . | . . . . . Overloaded Fab Kills . | . . . . . Hacking | -11 -10 -10 -10 -9 --------- Run | Yrd Mat Min Exi Min Machines Accessed 9 | . 7 . 1 1 Terminals 5 | . 4 . . 1 Fabricators . | . . . . . Repair Stations 1 | . 1 . . . Recycling Units 2 | . 2 . . . Scanalyzers . | . . . . . Garrison Access . | . . . . . Total Hacks 27 | . 22 . 1 4 Successful 19 | . 16 . 1 2 Failed 8 | . 6 . . 2 Catastrophic 3 | . 3 . . . Database Lockouts . | . . . . . Manual 10 | . 4 . 1 5 Terminals 18 | . 14 . . 4 Fabricators . | . . . . . Repair Stations 2 | . 2 . . . Recycling Units 6 | . 6 . . . Scanalyzers . | . . . . . Garrison Access . | . . . . . Terminal Hacks 12 | . 9 . 1 2 Record 2 | . 2 . . . Robot Analysis 2 | . 1 . . 1 Prototype ID Bank 2 | . 2 . . . Alert Level 1 | . . . . 1 Locate Traps 2 | . 2 . . . Investigation Status 1 | . 1 . . . Registered Components 1 | . 1 . . . Derelict Proto ID Bank 1 | . . . 1 . Fabricator Hacks . | . . . . . Repair Station Hacks 2 | . 2 . . . Scan Component 1 | . 1 . . . Repair 1 | . 1 . . . Recycling Unit Hacks 5 | . 5 . . . Report Inventory 2 | . 2 . . . Retrieve Matter 1 | . 1 . . . Retrieve Components 2 | . 2 . . . Scanalyzer . | . . . . . Garrison Access Hacks . | . . . . . Unauthorized Hacks . | . . . . . Terminals . | . . . . . Fabricators . | . . . . . Repair Stations . | . . . . . Recycling Units . | . . . . . Scanalyzers . | . . . . . Garrison Access . | . . . . . Data Cores Recovered . | . . . . . Used . | . . . . . Hacking Detections 7 | . 6 . . 1 Full Trace Events 2 | . 2 . . . Feedback Events . | . . . . . Feedback Blocked . | . . . . . Robot Schematics Acquired . | . . . . . Robots Built . | . . . . . Authchips . | . . . . . Time . | . . . . . Total Robot Build Rating . | . . . . . Part Schematics Acquired . | . . . . . Parts Built . | . . . . . Authchips . | . . . . . Time . | . . . . . Total Part Build Rating . | . . . . . Parts Repaired 1 | . 1 . . . Time 26 | . 26 . . . Parts Recycled . | . . . . . Recycled Matter . | . . . . . Retrieved Matter . | . . . . . Retrieved Components . | . . . . . Parts Scanalyzed . | . . . . . Part Schematics Acquired . | . . . . . Parts Damaged . | . . . . . Bothacking | -11 -10 -10 -10 -9 ------------ Run | Yrd Mat Min Exi Min Used RIF Installer . | . . . . . Robots Hacked . | . . . . . Non-combat . | . . . . . Combat . | . . . . . Robot Hacks Applied . | . . . . . Relay Couplers Released . | . . . . . Fabnet Peak Effective % . | . . . . . Robots Rewired . | . . . . . Allies Hacked . | . . . . . Hacks Repelled . | . . . . . Allies | -11 -10 -10 -10 -9 -------- Run | Yrd Mat Min Exi Min Total Allies 6 | . . 5 . 1 Largest Group 5 | . . 5 3 3 Highest-Rated Group 89 | . . 89 55 55 Highest-Rated Ally 31 | . . 31 31 31 Total Orders . | . . . . . Ally Attacks 30 | . . 18 . 12 Total Damage 517 | . . 134 . 383 Kills 10 | . . 5 . 5 Allies Corrupted . | . . . . . Allies Melted . | . . . . . Turrets Deployed 1 | . . . . 1 Intel | -11 -10 -10 -10 -9 ------- Run | Yrd Mat Min Exi Min Robot Analysis Total 2 | . 1 . . 1 Derelict Logs Recovered 1 | . . 1 . . Drone Launches . | . . . . . Drone Recoveries . | . . . . . Exploration | -11 -10 -10 -10 -9 ------------- Run | Yrd Mat Min Exi Min Turns Passed 2820 | 124 1390 683 392 231 Spaces Moved 1495 | 64 687 397 243 104 Core 6 | 5 . . . 1 Treads 1429 | 59 687 397 243 43 Legs . | . . . . . Wheels . | . . . . . Hover . | . . . . . Flight 60 | . . . . 60 Fastest Speed 50 | 50 160 160 160 160 Average Speed 162 | 151 160 160 160 197 Slowest Speed 550 | 160 160 160 160 550 Overloaded Moves . | . . . . . Propulsion Burnouts . | . . . . . Robots Hopped . | . . . . . Cave-ins Triggered 1 | . 1 . . . Exploration Rate (%) 53 | 4 86 87 60 30 Regions Visited 4 Branch Regions 3 Pre-discovered Areas 2 | . . 2 . . Known Exits Taken . | . . . . . Unknown Exits Taken 4 | 1 1 1 1 . Scrap Searched 1 | . . 1 . . Spaces Dug . | . . . . . Terrain Destroyed 55 | . 55 . . . Melee . | . . . . . Projectile . | . . . . . AOE 55 | . 55 . . . Terrain Rammed . | . . . . . Walls Destroyed . | . . . . . Machines Disabled . | . . . . . Actions | -11 -10 -10 -10 -9 --------- Run | Yrd Mat Min Exi Min Total 1797 | 83 896 443 247 128 Wait 175 | . 120 45 . 10 Move 1491 | 63 686 396 242 104 Hop . | . . . . . Pick Up 31 | 9 16 1 3 2 Fast Attach . | . . . . . Attach 21 | 7 7 . . 7 Detach 2 | . . . 2 . Swap 8 | . 6 . . 2 Drop 6 | . 4 . . 2 Fire 63 | 4 57 1 . 1 Melee . | . . . . . Ram . | . . . . . Kick . | . . . . . Crush . | . . . . . Escape Stasis . | . . . . . Rewire . | . . . . . Trap . | . . . . . Miscellaneous . | . . . . . Route ------- -11/Scrapyard -10/Materials (discovered 6 exits: [*Mat x3] / [*Min x2] / [*Sub]) -10/Mines (discovered 3 exits: [*Mat x2] / *Exi) -10/Exiles (discovered 2 exits: *Min x2) -9/Mines History --------- Turn | Location | Event 38 | -11/Scrapyard | Discovered new exit (range 15) 125 | -11/Scrapyard | Entered Materials 125 | -10/Materials | Discovered new exit (range 11) 242 | -10/Materials | Crushed by falling debris 315 | -10/Materials | Build established: Mutant 357 | -10/Materials | Discovered new exit (range 7) 455 | -10/Materials | Repaired Seismic Detector 580 | -10/Materials | Discovered new exit (range 12) 913 | -10/Materials | Discovered new exit (range 5) 960 | -10/Materials | Discovered new exit (range 5) 1329 | -10/Materials | Discovered new exit (range 16) 1515 | -10/Materials | Entered Mines 1566 | -10/Mines | Met a Derelict bent on vengeance 1594 | -10/Mines | Found a hidden stash of uninstalled traps 1642 | -10/Mines | Learned location of Storage (-8) 1689 | -10/Mines | Learned location of Zion (-6) 1699 | -10/Mines | Assisted by bots powering up and referring to "LRC-V3" 1761 | -10/Mines | Discovered new exit (range 5) 1889 | -10/Mines | Discovered new exit (range 13) 2192 | -10/Mines | Deemed a non-threat by the Exiles lab entrance 2192 | -10/Mines | Discovered new exit (range 5) 2198 | -10/Mines | Entered Exiles 2198 | -10/Exiles | Accompanied by 3 allies 2225 | -10/Exiles | Discovered new exit (range 14) 2228 | -10/Exiles | Led the pair of lost Derelicts to a safe place 2259 | -10/Exiles | Met 8R-AWN 2284 | -10/Exiles | Met EX-HEX 2334 | -10/Exiles | Met EX-BIN 2351 | -10/Exiles | Aligned with FarCom system 2353 | -10/Exiles | Given EX-Vault access code 2390 | -10/Exiles | Opened EX-Vault 2435 | -10/Exiles | Found Deploy-a-Sentry 2437 | -10/Exiles | Found Deploy-a-Sentry 2440 | -10/Exiles | Found Deploy-a-Sentry 2458 | -10/Exiles | Exiles lab attacked by MAIN.C 2575 | -10/Exiles | Discovered new exit (range 11) 2590 | -10/Exiles | Left Exiles lab with Deploy-a-Sentry 2590 | -10/Exiles | Entered Mines 2590 | -9/Mines | Accompanied by 2 allies 2591 | -9/Mines | Met a Derelict testing a Signal Generator 2638 | -9/Mines | Assembled infested the area 2657 | -9/Mines | Core integrity fell below 50% 2667 | -9/Mines | Core integrity fell below 20% 2677 | -9/Mines | DAS Turret deployed 2687 | -9/Mines | Lost 4 allies 2708 | -9/Mines | Lost 4 parts (1p2n1w) 2821 | -9/Mines | Destroyed by as-60227 with Assembled Blade Last Messages --------------- >>Alert(Check) Current Alert Level: Low Security >>Analysis(Y-45 Defender) Downloading analysis... Y-45 Defender Tier: 2 Y-series armored sentries are equipped with a mix of thermal and kinetic weaponry. The Y-45 guards important locations and vital machinery, and remains at its station unless they identify a hostile robot or are alerted to the presence of one nearby. 02782_ Connecting with Terminal... 02791_ Acquired 10 matter. 02793_ Identified Imp. Heat Sink. 02795_ Dropped Imp. Heat Sink. 02800_ The unstable cave ceiling collapses. 02815_ System corrupted: Component data lost. 02819_ Hvy. Assault Rifle destroyed. 02820_ K-01 Serf collects debris. Map ----- +----------------------------------------------------+ | ??????????????# % =% %%% % | | ??????????????# !*=% = ## % | | ?????????????# %##%! % | | ?????????????? ????###### %# | | ?????????????? #?????????????## | | ?????????????????????????????## % | | ??????????????????????????###### ## # | | ????????????????????# % ## | | ??????????????????????????#########t #? | | ??????????????????????????????????# ## | | ??????????????????????????????????# # | | ??????????????????????????????????###t# | | ????????????????????????????????????# # | | ????????????????????????????????????# k | | ????????????????????????????????????### | | ??????????????????????????????????????? | | ??????????????????????????###?????????? | | ??????????###??#########??# ?????????? | | ?????????? #??# #??# #?????????? | | ??????????# #?## #??# #?????????? | | ??????????# #?#T """ #### #?????????? | | ???????#### #### """ #?????????? | | ???????# ## """ #### #?????????# | | ???????# #### ## #??# #??######## | | ???????#????#a## """ #??# #### | | ????????????# @ !""" #??# | | ????????????####!""" #?## | | ???????????????# #?# ## | | ???????????????#### #### ## #####? | | ??????????????????####??## ######????? | | ?????????????????????????####?????????? | | ??????s???????????????????????????????? | | ??????????????????????????????????????? | | ????s?????????????????????????????????? | | ???ss?????????????????????????????????? | | ??????????????????????????????????????? | | ??????????????????????????????????????? | | ??????????????????????????????????????? | | ??????????????????????????????????????? | | ??????????????????????????????????????? | | | | | | | | | | | | | | | | | | | | | +----------------------------------------------------+ Best States ------------- Heat Dissipation 25 Energy Generation 10 Energy Capacity 250 Matter Stores 300 Matter Capacity 300 Sight Range 16 Terrain Scan Density 10 Armor Coverage 150 Evasion (%) 40 Recoil Reduction 2 Item Schematics ----------------- None Robot Schematics ------------------ None Fabricated ------------ Nothing Alien Tech Used ----------------- None Achievements -------------- Hunted Maybe Next Time I'll Detach My Launcher Slippery One The More The Merrier Challenges ------------ None Game ------ Seed VampiricThunderRefractor Manual? 0 Play Time 00:20:28 Cumulative 2.7 hours Start 2025.04.25 @ 20:48:49 End 2025.04.25 @ 21:09:00 Sessions 1 Manual Loads 0 Difficulty Rogue Special Mode None Game No. 4 Rogue 4 Adventurer 0 Explorer 0 Win Type - Total 0 Types 0/0/0/0/0/0/0/0/0 Lore% 2 Gallery% 7 Achievement% 10 Wizard Run 0 Options --------- Layout 1 ASCII 0 Keyboard 0 Movement Mouse Keybinds 0 Fullscreen 1 Font 24/Smallcaps Map View 25x20 Zoom Use 81% Tactical HUD 1 Map Filters NONE Filters NONE Steam 1 RUN: 3af3c2e7-8dac-424e-af76-734032da8779